bitfinex/quotes_SOLUSD_20250527
["timestamp","ask_amount","ask_price","bid_price","bid_amount"]
[1748331289628,1.71546203,174.88,174.87,12.51031216]
[1748331289927,1.71536394,174.89,174.87,12.51031216]
[1748331292148,1.7151678,174.91,174.87,12.51031216]
[1748331292943,6.0030873,174.91,174.87,12.51031216]
[1748331293452,6.0030873,174.91,174.86,34.3]
[1748331293640,18.51339946,174.91,174.86,34.3]
[1748331293846,18.51339946,174.91,174.86,46.81031216]
[1748331294334,12.51031216,174.87,174.86,34.3]
[1748331294858,12.51031216,174.89,174.86,34.3]
[1748331295326,12.51031216,174.9,174.86,34.3]
[1748331295525,6.0030873,174.91,174.86,34.3]
[1748331295725,6.0030873,174.91,174.88,12.51031216]
[1748331296340,4.2879195,174.91,174.89,43.06]
[1748331296653,4.2879195,174.91,174.9,34.3]
[1748331298456,1.71477565,174.95,174.9,46.81031216]
[1748331298635,1.71477565,174.95,174.93,12.51031216]
[1748331298836,1.71477565,174.95,174.94,34.3]
[1748331299961,6.00111107,174.97,174.94,34.3]
[1748331300265,18.51142323,174.97,174.94,34.3]
[1748331300830,6.00111107,174.97,174.94,34.3]
[1748331301633,18.51142323,174.97,174.94,34.3]
[1748331302557,12.51031216,174.95,174.94,34.3]
[1748331302859,12.51031216,174.96,174.94,34.3]
[1748331303660,18.51142323,174.97,174.94,34.3]
[1748331304037,6.00111107,174.97,174.94,34.3]
[1748331304249,6.00111107,174.97,174.95,12.51031216]
[1748331304563,1.71457964,174.97,174.96,54.55031216]
[1748331306259,6.00010892,175.0,174.96,54.55031216]
[1748331306437,6.00010892,175.0,174.97,34.28]
[1748331307649,6.00010892,175.0,174.97,46.79031216]
[1748331308459,4.28582321,175.0,174.97,46.79031216]
[1748331309456,4.28582321,175.0,174.97,34.28]
[1748331309630,4.28582321,175.0,174.97,46.79031216]
[1748331309826,12.51031216,174.98,174.96,42.04]
[1748331310027,4.28582321,175.0,174.96,42.04]
[1748331310028,12.51031216,174.97,174.96,42.04]
[1748331310247,12.51031216,174.97,174.96,76.32]
[1748331310430,30.28582321,175.0,174.96,76.32]
[1748331310431,1.71448165,174.98,174.96,76.32]
[1748331310645,14.22479381,174.98,174.96,76.32]
[1748331312365,1.71448165,174.98,174.96,76.32]
[1748331312561,14.22479381,174.98,174.96,76.32]
[1748331313463,26.0,174.97,174.96,42.04]
[1748331313651,26.0,174.97,174.96,76.32]
[1748331314564,27.71457964,174.97,174.96,76.32]
[1748331315472,1.71448165,174.98,174.96,88.83031216]
[1748331315769,1.71408981,175.02,174.97,12.51031216]
[1748331315956,1.71408981,175.02,175.01,12.51031216]
[1748331316265,1.71408981,175.02,175.01,46.79031216]
[1748331318547,1.71408981,175.02,175.01,34.28]
[1748331318745,27.71408981,175.02,175.01,34.28]
[1748331319272,44.50962651,175.02,175.01,76.3]
[1748331320863,44.50962651,175.02,175.01,42.02]
[1748331321065,44.50962651,175.02,175.01,76.3]
[1748331322472,44.50962651,175.02,175.01,42.02]
[1748331322768,44.50962651,175.02,174.92,94.94]
[1748331322769,53.0800756,175.02,174.99,34.28]
[1748331322944,26.0,174.97,174.96,42.02]
[1748331323142,26.0,174.97,174.96,76.3]
[1748331323953,38.51031216,174.97,174.96,76.3]
[1748331324552,40.2248918,174.97,174.96,76.3]
[1748331324870,40.2248918,174.97,174.96,42.02]
[1748331326575,14.2248918,174.97,174.96,42.02]
[1748331326750,40.2248918,174.97,174.96,42.02]
[1748331326950,14.2248918,174.97,174.96,42.02]
[1748331328873,40.2248918,174.97,174.96,42.02]
[1748331329375,14.2248918,174.97,174.96,42.02]
[1748331330451,40.2248918,174.97,174.96,42.02]
[1748331334398,27.71457964,174.97,174.96,42.02]
[1748331334606,40.2248918,174.97,174.96,42.02]
[1748331335265,27.71457964,174.97,174.96,42.02]
[1748331335763,40.2248918,174.97,174.96,42.02]
[1748331339270,27.71457964,174.97,174.96,42.02]
[1748331339475,40.2248918,174.97,174.96,42.02]
[1748331340775,27.71457964,174.97,174.96,42.02]
[1748331340971,40.2248918,174.97,174.96,42.02]
[1748331341385,1.71457964,174.97,174.96,42.02]
[1748331342478,1.71438367,174.99,174.96,42.02]
[1748331342791,14.22469583,174.99,174.97,34.28]
[1748331345063,14.22479381,174.98,174.97,34.28]
[1748331348283,1.71448165,174.98,174.97,34.28]
[1748331348994,14.22479381,174.98,174.97,34.28]
[1748331350701,1.71448165,174.98,174.97,34.28]
[1748331351411,14.22479381,174.98,174.97,34.28]
[1748331351878,14.22479381,174.98,174.96,76.3]
[1748331352203,12.51031216,174.97,174.96,42.02]
[1748331352376,12.51031216,174.97,174.96,76.3]
[1748331353901,14.2248918,174.97,174.96,76.3]
[1748331356401,27.71457964,174.97,174.96,76.3]
[1748331357082,1.71457964,174.97,174.96,76.3]
[1748331358698,1.71448165,174.98,174.96,76.3]
[1748331358906,1.71448165,174.98,174.96,88.81031216]
[1748331359278,1.71448165,174.98,174.96,76.3]
[1748331360906,1.71438367,174.99,174.96,76.3]
[1748331361607,1.71438367,174.99,174.96,88.81031216]
[1748331361903,1.71438367,174.99,174.97,12.51031216]
[1748331362114,1.71438367,174.99,174.98,34.28]
[1748331362786,4.28593444,175.0,174.98,34.28]
[1748331363114,1.71418776,175.01,174.98,46.79031216]
[1748331364412,1.71408981,175.02,174.98,46.79031216]
[1748331364599,1.71408981,175.02,174.99,12.51031216]
[1748331364996,1.71408981,175.02,175.01,12.51031216]
[1748331365202,4.97742465,175.03,175.01,46.79031216]
[1748331365406,4.97742465,175.03,175.02,40.42]
[1748331365708,1.71400423,175.03,175.02,40.42]
[1748331366615,14.22431639,175.03,175.02,74.7]
[1748331367282,1.71400423,175.03,175.02,74.7]
[1748331368509,1.71389396,175.04,175.02,74.7]
[1748331369891,14.22420612,175.04,175.02,74.7]
[1748331371096,1.71389396,175.04,175.02,74.7]
[1748331376125,12.51031216,175.03,175.02,74.68]
[1748331378705,1.71399188,175.03,175.02,74.68]
[1748331379705,1.71379605,175.05,175.02,74.68]
[1748331380723,14.22410821,175.05,175.02,74.68]
[1748331381128,1.71379605,175.05,175.02,74.68]
[1748331384034,14.22410821,175.05,175.02,74.68]
[1748331389028,14.22410821,175.05,175.02,40.42]
[1748331389338,12.51031216,175.03,175.02,40.42]
[1748331389874,14.22430404,175.03,175.02,40.42]
[1748331396638,1.71438367,174.99,174.97,40.38]
[1748331396839,12.51031216,174.98,174.97,40.38]
[1748331397374,12.51031216,174.98,174.97,74.64]
[1748331397715,12.51031216,174.98,174.97,40.38]
[1748331397914,14.22479381,174.98,174.97,74.64]
[1748331398737,14.22479381,174.98,174.97,40.38]
[1748331399040,53.08340621,174.98,174.92,122.6]
[1748331399226,40.57309405,174.98,174.94,34.26]
[1748331399731,26.0,174.96,174.95,34.26]
[1748331400043,32.00137174,174.96,174.92,122.6]
[1748331400248,32.00137174,174.96,174.93,34.28]
[1748331400424,12.51031216,174.94,174.93,34.28]
[1748331400618,12.51031216,174.94,174.92,122.6]
[1748331400818,12.51031216,174.93,174.92,122.6]
[1748331401036,12.51031216,174.93,174.92,156.88]
[1748331401738,12.51031216,174.93,174.92,122.6]
[1748331401945,12.51031216,174.93,174.92,156.88]
[1748331401946,14.22528386,174.93,174.92,156.88]
[1748331402151,14.22528386,174.93,174.92,122.6]
[1748331402318,14.22528386,174.93,174.92,156.88]
[1748331405649,1.7149717,174.93,174.92,156.88]
[1748331407037,14.22528386,174.93,174.92,122.6]
[1748331407245,14.22528386,174.93,174.92,156.88]
[1748331407425,1.7149717,174.93,174.92,156.88]
[1748331408747,14.22528386,174.93,174.92,156.88]
[1748331411945,1.7149717,174.93,174.92,156.88]
[1748331412935,1.7149717,174.93,174.92,74.66]
[1748331413328,1.71487367,174.94,174.92,74.66]
[1748331415145,18.5116839,174.96,174.92,74.66]
[1748331416046,18.5116839,174.96,174.92,87.17031216]
[1748331416234,18.5116839,174.96,174.93,12.51031216]
[1748331416235,1.71467764,174.96,174.93,12.51031216]
[1748331416437,1.71467764,174.96,174.94,34.28]
[1748331418220,12.51031216,174.95,174.94,34.28]
[1748331419634,4.2861292,174.99,174.94,34.28]
[1748331419831,16.79644136,174.99,174.94,34.28]
[1748331420243,16.79644136,174.99,174.94,46.79031216]
[1748331420956,1.71428571,175.0,174.97,12.51031216]
[1748331421156,1.71428571,175.0,174.98,74.66]
[1748331421620,20.06218463,175.02,174.98,74.66]
[1748331421828,1.71418776,175.01,174.98,74.66]
[1748331422365,1.71418776,175.01,174.99,12.51031216]
[1748331422655,1.71389396,175.04,175.0,12.51031216]
[1748331422855,1.71389396,175.04,175.01,46.79031216]
[1748331423744,4.28466132,175.05,175.01,46.79031216]
[1748331423745,5.99845737,175.05,175.01,46.79031216]
[1748331424766,12.51031216,175.06,175.01,46.79031216]
[1748331425159,12.51031216,175.05,175.01,34.28]
[1748331425949,1.71389396,175.04,175.01,34.28]
[1748331426261,12.51031216,175.02,174.98,40.38]
[1748331426463,12.51031216,175.01,174.99,34.28]
[1748331427352,12.51031216,175.02,174.99,34.28]
[1748331428045,1.71418776,175.01,174.99,34.28]
[1748331428246,1.71418776,175.01,174.99,46.79031216]
[1748331428471,1.71418776,175.01,174.99,34.28]
[1748331430875,1.71408981,175.02,174.99,34.28]
[1748331431186,4.28408488,175.07,175.01,12.51031216]
[1748331431360,149.1,175.11,175.04,12.51031216]
[1748331431678,12.51031216,175.07,175.05,74.6]
[1748331431845,12.51031216,175.07,175.06,40.32]
[1748331432969,13.65271234,175.07,175.06,40.32]
[1748331434183,13.65271234,175.07,175.06,40.32]
[1748331440058,13.65271234,175.07,175.06,74.58]
[1748331443071,1.14240018,175.07,175.06,74.58]
[1748331443378,13.65271234,175.07,175.06,74.58]
[1748331445577,1.14240018,175.07,175.06,74.58]
[1748331446876,13.65264709,175.08,175.06,74.58]
[1748331447278,1.14233493,175.08,175.06,87.09031216]
[1748331447480,1.14233493,175.08,175.06,74.58]
[1748331449178,1.14226968,175.09,175.06,74.58]
[1748331450290,1.14226968,175.09,175.06,87.09031216]
[1748331450499,1.14226968,175.09,175.07,12.51031216]
[1748331451568,1.14220445,175.1,175.07,12.51031216]
[1748331452273,1.14220445,175.1,175.08,18.64964886]
[1748331452477,1.14220445,175.1,175.09,46.77031216]
[1748331453574,1.142074,175.12,175.1,18.64964886]
[1748331453780,1.142074,175.12,175.1,31.15996102]
[1748331455994,1.142074,175.12,175.11,12.51031216]
[1748331457967,1.142074,175.12,175.1,119.95996102]
[1748331458164,1.142074,175.12,175.1,107.44964886]
[1748331458569,1.142074,175.12,175.1,119.95996102]
[1748331463803,1.142074,175.12,175.11,31.15996102]
[1748331466195,1.142074,175.12,175.11,18.64964886]
[1748331466390,1.142074,175.12,175.11,107.44964886]
[1748331467396,29.75324497,175.13,175.12,18.64964886]
[1748331467572,29.75324497,175.13,175.12,105.61996102]
[1748331468100,29.75324497,175.13,175.12,107.19556102]
[1748331468282,29.75324497,175.13,175.12,113.30116102]
[1748331471197,29.75324497,175.13,175.12,113.72282779]
[1748331471408,29.75324497,175.13,175.12,113.30116102]
[1748331471589,29.75324497,175.13,175.12,113.71567983]
[1748331472210,29.75324497,175.13,175.12,195.89567983]
[1748331472411,29.75324497,175.13,175.12,432.89567983]
[1748331473730,29.75324497,175.13,175.12,420.38536767]
[1748331474025,29.75324497,175.13,175.12,432.89567983]
[1748331477006,29.75324497,175.13,175.12,350.75447983]
[1748331477215,30.89525376,175.13,175.12,425.19447983]
[1748331477507,30.89525376,175.13,175.12,390.95447983]
[1748331477806,30.89525376,175.13,175.12,425.19447983]
[1748331478193,30.89525376,175.13,175.12,276.99447983]
[1748331479106,30.89525376,175.13,175.12,194.81447983]
[1748331481204,29.75324497,175.13,175.12,194.81447983]
[1748331483496,1.14168284,175.18,175.12,194.81447983]
[1748331483696,1.14168284,175.18,175.12,182.30416767]
[1748331483903,1.14168284,175.18,175.15,12.51031216]
[1748331484111,1.14168284,175.18,175.16,34.24]
[1748331484415,1.14168284,175.18,175.16,123.04]
[1748331484814,1.14161767,175.19,175.16,123.04]
[1748331487911,3.99554681,175.2,175.16,123.04]
[1748331488096,16.50585897,175.2,175.16,123.04]
[1748331490620,3.99554681,175.2,175.17,18.64964886]
[1748331490825,1.14155251,175.2,175.18,40.12]
[1748331491005,1.14155251,175.2,175.19,34.24]
[1748331492117,1.14148735,175.21,175.19,34.24]
[1748331492825,13.65179951,175.21,175.19,34.24]
[1748331494496,1.14142221,175.22,175.19,34.24]
[1748331494705,12.51031216,175.21,175.19,34.24]
[1748331496322,1.14155251,175.2,175.19,34.24]
[1748331498804,13.65186467,175.2,175.19,34.24]
[1748331500230,1.14155251,175.2,175.19,34.24]
[1748331500430,13.65186467,175.2,175.19,34.24]
[1748331501030,13.65186467,175.2,175.18,40.12]
[1748331501332,12.51031216,175.19,175.18,40.12]
[1748331501632,12.51031216,175.19,175.18,74.36]
[1748331502027,13.65192983,175.19,175.18,74.36]
[1748331503024,1.14161767,175.19,175.18,74.36]
[1748331503222,13.65192983,175.19,175.18,74.36]
[1748331503429,1.14161767,175.19,175.18,74.36]
[1748331504013,1.14155251,175.2,175.18,74.36]
[1748331505023,2.85343851,175.23,175.18,74.36]
[1748331505024,3.99479558,175.23,175.18,74.36]
[1748331505222,12.51031216,175.22,175.18,74.36]
[1748331506539,1.14148735,175.21,175.18,74.36]
[1748331507936,1.14148735,175.21,175.19,18.64964886]
[1748331508740,3.99479558,175.23,175.19,18.64964886]
[1748331508920,12.51031216,175.22,175.19,18.64964886]
[1748331509122,12.51031216,175.21,175.18,163.16]
[1748331510014,12.51031216,175.22,175.18,163.16]
[1748331511638,1.14148735,175.21,175.18,163.16]
[1748331512521,1.14148735,175.21,175.19,34.22]
[1748331514645,1.14148735,175.21,175.2,40.12]
[1748331518748,1.14142221,175.22,175.2,40.12]
[1748331523456,3.99479558,175.23,175.2,40.12]
[1748331525555,3.99479558,175.23,175.2,128.92]
[1748331528365,11.96733891,175.23,175.2,128.92]
[1748331528656,11.96733891,175.23,175.21,34.22]
[1748331530665,11.96733891,175.23,175.22,40.02]
[1748331533864,11.96733891,175.23,175.22,74.24]
[1748331535180,15.22844859,175.23,175.22,74.24]
[1748331535961,11.96733891,175.23,175.22,74.24]
[1748331538667,15.22844859,175.23,175.22,74.24]
[1748331539757,11.96733891,175.23,175.22,40.02]
[1748331539959,11.96733891,175.23,175.22,74.24]
[1748331540354,11.96733891,175.23,175.2,40.02]
[1748331540565,7.97254333,175.21,175.2,40.02]
[1748331540759,9.11403068,175.21,175.2,74.24]
[1748331541576,1.14148735,175.21,175.2,74.24]
[1748331544289,1.14148735,175.21,175.2,92.88964886]
[1748331545078,1.1414383,175.22,175.21,18.64964886]
[1748331545286,4.40248903,175.23,175.21,26.62219219]
[1748331545465,4.40248903,175.23,175.22,26.62219219]
[1748331545856,1.14131347,175.24,175.23,18.64964886]
[1748331546171,1.14131347,175.24,175.23,52.86964886]
[1748331548486,1.14131347,175.24,175.23,34.22]
[1748331549985,9.11377014,175.25,175.23,34.22]
[1748331550985,7.97254333,175.24,175.23,34.22]
[1748331551390,11.96683718,175.25,175.23,34.22]
[1748331551688,11.96683718,175.25,175.21,107.44964886]
[1748331551990,11.96683718,175.25,175.22,34.22]
[1748331552361,3.99429385,175.25,175.22,34.22]
[1748331552680,11.96683718,175.25,175.22,34.22]
[1748331552907,3.99429385,175.25,175.23,34.22]
[1748331553072,7.97254333,175.24,175.23,34.22]
[1748331553804,1.14135707,175.23,175.2,40.02]
[1748331553967,1.14135707,175.23,175.21,34.22]
[1748331554368,1.14135707,175.23,175.22,34.22]
[1748331554888,9.1139004,175.23,175.22,34.22]
[1748331555792,9.1139004,175.23,175.2,40.02]
[1748331555982,7.97254333,175.22,175.21,34.22]
[1748331558285,9.11396554,175.22,175.21,34.22]
[1748331558888,1.14142221,175.22,175.21,52.86964886]
[1748331559072,1.14142221,175.22,175.21,60.84219219]
[1748331559478,3.26110968,175.24,175.21,60.84219219]
[1748331559479,1.14129194,175.24,175.22,18.64964886]
[1748331560394,3.99429385,175.25,175.22,18.64964886]
[1748331560597,3.99429385,175.25,175.21,34.22]
[1748331560800,7.97254333,175.22,175.2,40.02]
[1748331560969,7.97254333,175.22,175.21,34.22]
[1748331562281,3.99429385,175.25,175.21,34.22]
[1748331562516,1.14142221,175.22,175.21,34.22]
[1748331564796,1.14142221,175.22,175.2,40.02]
[1748331565000,1.14142221,175.22,175.21,34.22]
[1748331565892,1.14129194,175.24,175.22,18.64964886]
[1748331566095,1.14129194,175.24,175.23,39.9]
[1748331568009,9.11383527,175.24,175.23,39.9]
[1748331569099,1.14129194,175.24,175.23,39.9]
[1748331570201,1.14129194,175.24,175.23,58.54964886]
[1748331572095,1.14122681,175.25,175.23,58.54964886]
[1748331573579,1.1411617,175.26,175.24,18.64964886]
[1748331573899,1.1411617,175.26,175.25,34.22]
[1748331576381,9.11370503,175.26,175.25,34.22]
[1748331577535,1.1411617,175.26,175.25,34.22]
[1748331579610,9.11370503,175.26,175.25,34.22]
[1748331583219,1.1411617,175.26,175.25,34.22]
[1748331584397,1.1411617,175.26,175.25,52.86964886]
[1748331584916,9.11363992,175.27,175.25,52.86964886]
[1748331585284,1.14109659,175.27,175.25,52.86964886]
[1748331585621,9.11363992,175.27,175.25,52.86964886]
[1748331585795,1.14109659,175.27,175.25,52.86964886]
[1748331586287,1.14109659,175.27,175.25,34.22]
[1748331588015,1.14109659,175.27,175.26,18.64964886]
[1748331589203,1.14109659,175.27,175.25,34.22]
[1748331590001,9.11363992,175.27,175.25,34.22]
[1748331591532,7.97254333,175.26,175.25,34.22]
[1748331592008,10.82522007,175.28,175.25,34.22]
[1748331592436,10.82522007,175.28,175.26,39.76]
[1748331592725,2.85267674,175.28,175.26,39.76]
[1748331592927,10.82522007,175.28,175.26,39.76]
[1748331593398,11.96625156,175.28,175.26,39.76]
[1748331594226,1.14103149,175.28,175.26,39.76]
[1748331595495,9.11350972,175.29,175.26,39.76]
[1748331597819,1.14096639,175.29,175.27,18.64964886]
[1748331599912,11.96569792,175.3,175.26,39.76]
[1748331600229,3.99315459,175.3,175.27,18.64964886]
[1748331600604,1.14090131,175.3,175.27,26.62219219]
[1748331600801,3.26110968,175.33,175.29,34.1531]
[1748331601002,4.40182714,175.33,175.31,26.62219219]
[1748331601224,1.14071746,175.33,175.27,26.0]
[1748331601398,1.14071746,175.33,175.28,92.62964886]
[1748331601609,1.14071746,175.33,175.28,100.60219219]
[1748331601825,1.14071746,175.33,175.29,7.97254333]
[1748331602207,1.14071746,175.33,175.31,18.64964886]
[1748331602406,1.14071746,175.33,175.32,52.86964886]
[1748331602830,9.11326079,175.33,175.32,34.22]
[1748331603709,1.14071746,175.33,175.32,34.22]
[1748331607569,11.96502603,175.33,175.31,34.22]
[1748331607839,7.97254333,175.32,175.31,34.22]
[1748331608227,2.85176524,175.33,175.31,34.22]
[1748331608938,10.82430857,175.33,175.31,34.22]
[1748331609513,2.85176524,175.33,175.31,34.22]
[1748331609716,10.82430857,175.33,175.31,34.22]
[1748331610147,7.97254333,175.32,175.28,39.76]
[1748331610323,7.97254333,175.29,175.28,39.62]
[1748331610522,7.97254333,175.29,175.28,73.84]
[1748331610727,3.99315459,175.3,175.28,73.84]
[1748331614350,1.14083623,175.31,175.29,18.64964886]
[1748331614563,1.14083623,175.31,175.29,26.62219219]
[1748331614845,1.14083623,175.31,175.3,7.97254333]
[1748331615068,1.14083623,175.31,175.29,26.62219219]
[1748331615355,1.14083623,175.31,175.29,18.64964886]
[1748331615529,1.14083623,175.31,175.29,26.62219219]
[1748331616753,3.99257367,175.33,175.29,26.62219219]
[1748331618751,3.99257367,175.33,175.29,18.64964886]
[1748331618951,3.99257367,175.33,175.29,26.62219219]
[1748331620248,3.99257367,175.33,175.29,115.42219219]
[1748331622163,7.97254333,175.31,175.29,88.8]
[1748331622330,7.97254333,175.31,175.3,34.2]
[1748331622842,7.97254333,175.32,175.3,34.2]
[1748331623357,3.99257367,175.33,175.3,34.2]
[1748331624164,11.965117,175.33,175.3,34.2]
[1748331624538,7.97254333,175.31,175.29,88.8]
[1748331624751,7.97254333,175.31,175.3,34.2]
[1748331625566,7.97254333,175.31,175.29,88.8]
[1748331625874,3.99257367,175.33,175.3,34.2]
[1748331626769,5.7030374,175.35,175.3,34.2]
[1748331627156,7.97254333,175.31,175.3,34.2]
[1748331627853,7.97254333,175.31,175.24,108.55014886]
[1748331628055,7.97254333,175.28,175.25,92.46964886]
[1748331628355,7.97254333,175.31,175.26,7.97254333]
[1748331628945,1.14090131,175.3,175.26,7.97254333]
[1748331631172,7.97254333,175.31,175.26,7.97254333]
[1748331631766,3.99252539,175.33,175.28,26.62219219]
[1748331631767,1.14070609,175.33,175.28,26.62219219]
[1748331632261,1.14070609,175.33,175.28,18.64964886]
[1748331632456,1.14070609,175.33,175.28,26.62219219]
[1748331632977,7.97254333,175.32,175.28,18.64964886]
[1748331633177,1.14083623,175.31,175.28,18.64964886]
[1748331634086,1.14083623,175.31,175.29,39.62]
[1748331634373,1.14083623,175.31,175.3,34.2]
[1748331635170,1.14077116,175.32,175.3,34.2]
[1748331637078,7.97254333,175.31,175.3,34.2]
[1748331637281,9.11331449,175.32,175.29,39.62]
[1748331637453,9.11331449,175.32,175.3,34.2]
[1748331641196,1.14077116,175.32,175.3,34.2]
[1748331642601,9.11331449,175.32,175.3,34.2]
[1748331643479,1.14077116,175.32,175.3,34.2]
[1748331643680,1.14077116,175.32,175.31,26.62219219]
[1748331643884,1.14077116,175.32,175.31,18.64964886]
[1748331645369,1.14064104,175.34,175.31,18.64964886]
[1748331648782,1.14064104,175.34,175.33,18.64964886]
[1748331649371,1.14064104,175.34,175.33,7.97254333]
[1748331649865,1.14064104,175.34,175.32,26.62219219]
[1748331651510,1.14064104,175.34,175.32,18.64964886]
[1748331651669,9.11318437,175.34,175.31,88.8]
[1748331651991,1.14064104,175.34,175.32,34.2]
[1748331653989,1.14064104,175.34,175.33,39.48]
[1748331654399,1.14064104,175.34,175.33,58.12964886]
[1748331659800,3.26110968,175.35,175.33,58.12964886]
[1748331659983,3.26110968,175.35,175.34,26.62219219]
[1748331660312,4.40168567,175.35,175.34,18.64964886]
[1748331660498,4.40168567,175.35,175.34,92.32964886]
[1748331661517,4.40168567,175.35,175.34,100.30219219]
[1748331661800,4.40168567,175.35,175.34,92.32964886]
[1748331662889,3.26110968,175.35,175.34,100.30219219]
[1748331663194,4.40168567,175.35,175.34,100.30219219]
[1748331663505,4.40168567,175.35,175.34,73.68]
[1748331664883,3.26110968,175.35,175.34,92.32964886]
[1748331665077,4.40168567,175.35,175.34,92.32964886]
[1748331665481,3.26110968,175.35,175.34,92.32964886]
[1748331666106,4.40168567,175.35,175.34,92.32964886]
[1748331666404,3.26110968,175.35,175.34,100.30219219]
[1748331666703,4.40168567,175.35,175.34,100.30219219]
[1748331666912,4.40168567,175.35,175.34,92.32964886]
[1748331667287,1.14044591,175.37,175.34,92.32964886]
[1748331667587,7.97254333,175.38,175.34,92.32964886]
[1748331667588,1.14038747,175.38,175.36,7.97254333]
[1748331667787,1.14031427,175.4,175.37,7.97254333]
[1748331667988,1.14031427,175.4,175.38,46.6281828]
[1748331668186,1.14031427,175.4,175.39,73.68]
[1748331668387,1.14012085,175.42,175.4,18.64964886]
[1748331668585,1.14012085,175.42,175.41,31.07783166]
[1748331668884,1.14012085,175.42,175.41,18.64964886]
[1748331669080,1.14012085,175.42,175.4,18.64964886]
[1748331669284,1.13986093,175.46,175.41,34.2]
[1748331669485,12.4281828,175.42,175.37,18.64964886]
[1748331669701,12.4281828,175.4,175.38,73.68]
[1748331669900,12.4281828,175.39,175.34,18.64964886]
[1748331670212,12.4281828,175.38,175.35,73.68]
[1748331670817,12.4281828,175.37,175.35,73.68]
[1748331671109,12.4281828,175.38,175.35,73.68]
[1748331671413,12.4281828,175.38,175.36,34.2]
[1748331671600,1.14044591,175.37,175.36,34.2]
[1748331672401,13.56862871,175.37,175.36,34.2]
[1748331673007,13.56862871,175.37,175.35,39.48]
[1748331673205,1.14044591,175.37,175.36,34.2]
[1748331673410,13.56862871,175.37,175.36,34.2]
[1748331673611,1.14044591,175.37,175.36,34.2]
[1748331673985,13.56862871,175.37,175.36,34.2]
[1748331674591,1.14044591,175.37,175.36,34.2]
[1748331676212,1.14038088,175.38,175.36,34.2]
[1748331677898,12.4281828,175.37,175.36,34.2]
[1748331678414,13.56862871,175.37,175.36,34.2]
[1748331679719,13.56862871,175.37,175.35,39.48]
[1748331679904,13.56862871,175.37,175.36,34.2]
[1748331680722,13.56862871,175.37,175.35,39.48]
[1748331681019,12.4281828,175.36,175.35,39.48]
[1748331681223,12.4281828,175.36,175.35,73.68]
[1748331682505,13.56869374,175.36,175.35,39.48]
[1748331682720,13.56869374,175.36,175.35,73.68]
[1748331683089,1.14051094,175.36,175.35,73.68]
[1748331683404,13.56869374,175.36,175.35,73.68]
[1748331685917,13.56869374,175.36,175.35,39.48]
[1748331686122,13.56869374,175.36,175.32,0.41603026]
[1748331686123,42.41997111,175.36,175.32,0.41603026]
[1748331686295,12.4281828,175.33,175.32,0.41603026]
[1748331686733,1.14077116,175.32,175.3,39.34]
[1748331687041,12.4281828,175.31,175.3,39.34]
[1748331687938,12.4281828,175.31,175.3,73.54]
[1748331688153,12.4281828,175.31,175.3,39.34]
[1748331688647,24.8563656,175.31,175.25,121.42]
[1748331688864,12.4281828,175.26,175.18,1.5399]
[1748331689164,26.0,175.28,175.2,39.34]
[1748331689461,36.0,175.28,175.2,39.34]
[1748331689754,26.0,175.28,175.2,73.54]
[1748331690342,12.4281828,175.21,175.2,73.54]
[1748331690852,13.56967015,175.21,175.2,73.54]
[1748331691727,13.56967015,175.21,175.2,39.34]
[1748331691928,13.56967015,175.21,175.2,73.56]
[1748331692657,1.14148735,175.21,175.2,73.56]
[1748331692847,13.56967015,175.21,175.2,73.56]
[1748331693221,1.14148735,175.21,175.2,73.56]
[1748331693422,13.56967015,175.21,175.2,73.56]
[1748331693640,19.27710694,175.21,175.14,4.09200531]
[1748331693831,12.4281828,175.19,175.17,39.36]
[1748331694028,12.4281828,175.2,175.18,18.64964886]
[1748331694224,13.56967015,175.21,175.19,34.22]
[1748331695019,12.4281828,175.2,175.19,34.22]
[1748331695220,12.4281828,175.2,175.17,39.36]
[1748331695524,12.4281828,175.18,175.17,39.36]
[1748331697038,1.14168284,175.18,175.17,39.36]
[1748331698144,13.56986564,175.18,175.17,39.36]